Workbook

Sheet 2012
A1: Quickie Stock Market Game
A3: Name:
A4: Period:
A5: It's January, 2011, and you have saved $500 to invest in the stock market. There are fifty stocks you can choose from. Click the "choose stock" button. Then in column F, choose how many shares of each stock you will purchase. You must stay as close to $500 as possible.
A8: MAKE SURE TO CHECK THE "ENABLE" BUTTON BEFORE BEGINNING!
A10: 2012
A12: 1 | B12: =VLOOKUP(C12,Stocks!$A$2:$J$101,2,FALSE) -> Cardinal Health Inc. | C12: 15 | D12: =VLOOKUP(C12,Stocks!$A$2:$J$101,3,FALSE) -> CAH | E12: =VLOOKUP(C12,Stocks!$A$2:$D$101,4,FALSE) -> 41.52 | G12: =E12*F12 -> 0 | L12: =RANDBETWEEN(1,100) -> 3
A13: 2 | B13: =VLOOKUP(C13,Stocks!$A$2:$J$101,2,FALSE) -> Micron | C13: 14 | D13: =VLOOKUP(C13,Stocks!$A$2:$J$101,3,FALSE) -> MU | E13: =VLOOKUP(C13,Stocks!$A$2:$D$101,4,FALSE) -> 7.76 | G13: =E13*F13 -> 0 | L13: =RANDBETWEEN(1,100) -> 59
A14: 3 | B14: =VLOOKUP(C14,Stocks!$A$2:$J$101,2,FALSE) -> Ebay | C14: 33 | D14: =VLOOKUP(C14,Stocks!$A$2:$J$101,3,FALSE) -> EBAY | E14: =VLOOKUP(C14,Stocks!$A$2:$D$101,4,FALSE) -> 30.63 | G14: 0 | L14: 99
A15: 4 | B15: =VLOOKUP(C15,Stocks!$A$2:$J$101,2,FALSE) -> Assurant, Inc. | C15: 3 | D15: =VLOOKUP(C15,Stocks!$A$2:$J$101,3,FALSE) -> AIZ | E15: =VLOOKUP(C15,Stocks!$A$2:$D$101,4,FALSE) -> 41.17 | G15: 0 | L15: 80
A16: 5 | B16: =VLOOKUP(C16,Stocks!$A$2:$J$101,2,FALSE) -> Southwest Airlines | C16: 56 | D16: =VLOOKUP(C16,Stocks!$A$2:$J$101,3,FALSE) -> LUV | E16: =VLOOKUP(C16,Stocks!$A$2:$D$101,4,FALSE) -> 8.52 | G16: 0 | L16: 77
G17: =SUM(G12:G16) -> 0
B20: 2012 Increase | D20: ='2013'!M6 -> 0
B21: 2013 Increase | D21: ='2014'!M6 -> 0
B22: 2014 Increase | D22: ='2015'!M6 -> 0
B23: 2015 Increase | D23: ='2016'!M6 -> 0
B24: 2016 Increase | D24: ='2017'!M6 -> 0
B26: 2011 Portfolio: | D26: =G17+500 -> 500
B27: Today's Portfolio: | D27: =Today!M7 -> 0 | F27: Print this Page Only!
B28: Cash Assets | D28: =Today!M8 -> 500
B29: Less Initial Investment: | D29: =D26 -> 500
B30: TOTAL INCREASE: | D30: =D27+D28-D29 -> 0 | E30: =IF(D39=6,"COMPLETE",IF(D39=6,"INCOMPETE",IF(D39=8,"CHECK"))) -> FALSE
C32: 12 | D32: =IF('2013'!F37>0,1,0) -> 0
C33: 13 | D33: =IF('2014'!F41>0,1,0) -> 0
C34: 14 | D34: =IF('2015'!F37>0,1,0) -> 0
C35: 15 | D35: =IF('2016'!F40>0,1,0) -> 0
C36: 16 | D36: =IF('2017'!F39>0,1,0) -> 0
C37: Today | D37: =IF(Today!H21>0,1,0) -> 0
D38: =IF(D30>1200,2,0) -> 0
D39: =SUM(D32:D38) -> 0

Sheet 2013
A1: 2013
A2: 2011 Investment Portfolio | E2: Jan, 2012 | F2: # of Shares | G2: Total | H2: Jan, 2013
E3: Stock Price | H3: Stock Price
A4: 1 | B4: ='2012'!B12 -> Cardinal Health Inc. | C4: ='2012'!C12 -> 15 | D4: ='2012'!D12 -> CAH | E4: ='2012'!E12 -> 41.52 | F4: ='2012'!F12 -> 0 | G4: =E4*F4 -> 0 | I4: =H4-E4 -> -41.52 | J4: =F4*H4 -> 0
A5: 2 | B5: ='2012'!B13 -> Micron | C5: ='2012'!C13 -> 14 | D5: ='2012'!D13 -> MU | E5: ='2012'!E13 -> 7.76 | F5: ='2012'!F13 -> 0 | G5: =E5*F5 -> 0 | I5: =H5-E5 -> -7.76 | J5: =F5*H5 -> 0 | L5: Stock Portfolio
A6: 3 | B6: ='2012'!B14 -> Ebay | C6: ='2012'!C14 -> 33 | D6: ='2012'!D14 -> EBAY | E6: ='2012'!E14 -> 30.63 | F6: ='2012'!F14 -> 0 | G6: 0 | I6: -30.63 | J6: 0 | L6: Market Gains: | M6: =J9-G9 -> 0
A7: 4 | B7: ='2012'!B15 -> Assurant, Inc. | C7: ='2012'!C15 -> 3 | D7: ='2012'!D15 -> AIZ | E7: ='2012'!E15 -> 41.17 | F7: ='2012'!F15 -> 0 | G7: 0 | I7: -41.17 | J7: 0 | L7: 2013 Portfolio: | M7: =J9 -> 0
A8: 5 | B8: ='2012'!B16 -> Southwest Airlines | C8: ='2012'!C16 -> 56 | D8: ='2012'!D16 -> LUV | E8: ='2012'!E16 -> 8.52 | F8: ='2012'!F16 -> 0 | G8: 0 | I8: -8.52 | J8: 0 | L8: 2013 Sell: | M8: =F20 -> 0
G9: =SUM(G4:G8) -> 0 | J9: =SUM(J4:J8) -> 0 | L9: 2013 Buy: | M9: =G30 -> 0
M10: =M7-M8+G30 -> 0
A11: SELL
L12: Cash
L13: Starting Cash | M13: 500
D14: Current | F14: Sell | L14: Liquid Assets | M14: =F20-G30 -> 0
D15: =D4 -> CAH | L15: Total Cash | M15: =M13+M14 -> 500
D16: =D5 -> MU
D17: =D6 -> EBAY
D18: =D7 -> AIZ
D19: =D8 -> LUV
F20: =SUM(F15:F19) -> 0
A22: BUY
B24: Buy | F24: Shares | G24: Total | H24: Companies
B25: =IF(A25="","",IF(A25>0,VLOOKUP(A25,Stocks!$A$2:$C$101,2,FALSE))) ->  | C25: =IF(A25="","",IF(A25>0,VLOOKUP(A25,Stocks!$A$2:$H$101,3,FALSE))) ->  | E25: =IF(A25="","",IF(A25>0,VLOOKUP(A25,Stocks!$A$2:$H$101,5,FALSE))) ->  | G25: =IF(A25="","",IF(A25>0,E25*F25)) ->  | H25: =IF(A25="",C4,A25) -> 15
B26: =IF(A26="","",IF(A26>0,VLOOKUP(A26,Stocks!$A$2:$C$101,2,FALSE))) ->  | C26: =IF(A26="","",IF(A26>0,VLOOKUP(A26,Stocks!$A$2:$H$101,3,FALSE))) ->  | E26: =IF(A26="","",IF(A26>0,VLOOKUP(A26,Stocks!$A$2:$H$101,5,FALSE))) ->  | G26: =IF(A26="","",IF(A26>0,E26*F26)) ->  | H26: =IF(A26="",C5,A26) -> 14
B27: =IF(A27="","",IF(A27>0,VLOOKUP(A27,Stocks!$A$2:$C$101,2,FALSE))) ->  | C27: =IF(A27="","",IF(A27>0,VLOOKUP(A27,Stocks!$A$2:$H$101,3,FALSE))) ->  | E27: =IF(A27="","",IF(A27>0,VLOOKUP(A27,Stocks!$A$2:$H$101,5,FALSE))) ->  | H27: 33
B28: =IF(A28="","",IF(A28>0,VLOOKUP(A28,Stocks!$A$2:$C$101,2,FALSE))) ->  | C28: =IF(A28="","",IF(A28>0,VLOOKUP(A28,Stocks!$A$2:$H$101,3,FALSE))) ->  | E28: =IF(A28="","",IF(A28>0,VLOOKUP(A28,Stocks!$A$2:$H$101,5,FALSE))) ->  | H28: 3
B29: =IF(A29="","",IF(A29>0,VLOOKUP(A29,Stocks!$A$2:$C$101,2,FALSE))) ->  | C29: =IF(A29="","",IF(A29>0,VLOOKUP(A29,Stocks!$A$2:$H$101,3,FALSE))) ->  | E29: =IF(A29="","",IF(A29>0,VLOOKUP(A29,Stocks!$A$2:$H$101,5,FALSE))) ->  | H29: 56
G30: =SUM(G25:G29) -> 0
F37: =SUM(F25:F29) -> 0

Sheet 2014
A1: 2014
A2: 2012 Investment Portfolio | E2: Jan 2013 | F2: # of Shares | G2: Total | H2: Jan, 2014
E3: Stock Price | H3: Stock Price
A4: 1 | B4: =VLOOKUP(C4,Stocks!$A$2:$H$101,2,FALSE) -> Cardinal Health Inc. | C4: ='2013'!H25 -> 15 | D4: =VLOOKUP(C4,Stocks!$A$2:$C$101,3,FALSE) -> CAH | E4: =VLOOKUP(C4,Stocks!$A$2:$H$101,5,FALSE) -> 44.64 | F4: =IF('2013'!F25="",'2013'!F4,'2013'!F25) -> 0 | G4: =E4*F4 -> 0 | I4: =H4-E4 -> -44.64 | J4: =F4*H4 -> 0
A5: 2 | B5: =VLOOKUP(C5,Stocks!$A$2:$H$101,2,FALSE) -> Micron | C5: ='2013'!H26 -> 14 | D5: =VLOOKUP(C5,Stocks!$A$2:$C$101,3,FALSE) -> MU | E5: =VLOOKUP(C5,Stocks!$A$2:$H$101,5,FALSE) -> 7.89 | F5: =IF('2013'!F26="",'2013'!F5,'2013'!F26) -> 0 | G5: =E5*F5 -> 0 | I5: =H5-E5 -> -7.89 | J5: =F5*H5 -> 0 | L5: Stock Portfolio
A6: 3 | B6: =VLOOKUP(C6,Stocks!$A$2:$H$101,2,FALSE) -> Ebay | C6: ='2013'!H27 -> 33 | D6: =VLOOKUP(C6,Stocks!$A$2:$C$101,3,FALSE) -> EBAY | E6: =VLOOKUP(C6,Stocks!$A$2:$H$101,5,FALSE) -> 54.21 | F6: =IF('2013'!F27="",'2013'!F6,'2013'!F27) -> 0 | G6: 0 | I6: -54.21 | J6: 0 | L6: Total Increase: | M6: =J9-G9 -> 0
A7: 4 | B7: =VLOOKUP(C7,Stocks!$A$2:$H$101,2,FALSE) -> Assurant, Inc. | C7: ='2013'!H28 -> 3 | D7: =VLOOKUP(C7,Stocks!$A$2:$C$101,3,FALSE) -> AIZ | E7: =VLOOKUP(C7,Stocks!$A$2:$H$101,5,FALSE) -> 36.19 | F7: =IF('2013'!F28="",'2013'!F7,'2013'!F28) -> 0 | G7: 0 | I7: -36.19 | J7: 0 | L7: 2014 Portfolio: | M7: =J9 -> 0
A8: 5 | B8: =VLOOKUP(C8,Stocks!$A$2:$H$101,2,FALSE) -> Southwest Airlines | C8: ='2013'!H29 -> 56 | D8: =VLOOKUP(C8,Stocks!$A$2:$C$101,3,FALSE) -> LUV | E8: =VLOOKUP(C8,Stocks!$A$2:$H$101,5,FALSE) -> 11.26 | F8: =IF('2013'!F29="",'2013'!F8,'2013'!F29) -> 0 | G8: 0 | I8: -11.26 | J8: 0 | L8: 2014 Sell: | M8: =F20 -> 0
G9: =SUM(G4:G8) -> 0 | J9: =SUM(J4:J8) -> 0 | L9: 2014 Buy: | M9: =G30 -> 0
M10: =M7-M8+M9 -> 0
A11: SELL
L12: Cash
L13: Starting Cash | M13: ='2013'!M15 -> 500
D14: Current | F14: Sell | L14: Liquid Assets | M14: =F20-G30 -> 0
D15: =D4 -> CAH | L15: Total Cash | M15: =M13+M14 -> 500
D16: =D5 -> MU
D17: =D6 -> EBAY
D18: =D7 -> AIZ
D19: =D8 -> LUV
F20: =SUM(F15:F19) -> 0
A22: BUY
B24: Buy | F24: Shares | G24: Total
B25: =IF(A25="","",IF(A25>0,VLOOKUP(A25,Stocks!$A$2:$C$101,2,FALSE))) ->  | C25: =IF(A25="","",IF(A25>0,VLOOKUP(A25,Stocks!$A$2:$H$101,3,FALSE))) ->  | E25: =IF(A25="","",IF(A25>0,VLOOKUP(A25,Stocks!$A$2:$H$101,6,FALSE))) ->  | G25: =IF(A25="","",IF(A25>0,E25*F25)) ->  | H25: =IF(A25="",C4,A25) -> 15
B26: =IF(A26="","",IF(A26>0,VLOOKUP(A26,Stocks!$A$2:$C$101,2,FALSE))) ->  | C26: =IF(A26="","",IF(A26>0,VLOOKUP(A26,Stocks!$A$2:$H$101,3,FALSE))) ->  | E26: =IF(A26="","",IF(A26>0,VLOOKUP(A26,Stocks!$A$2:$H$101,6,FALSE))) ->  | G26: =IF(A26="","",IF(A26>0,E26*F26)) ->  | H26: =IF(A26="",C5,A26) -> 14
B27: =IF(A27="","",IF(A27>0,VLOOKUP(A27,Stocks!$A$2:$C$101,2,FALSE))) ->  | C27: =IF(A27="","",IF(A27>0,VLOOKUP(A27,Stocks!$A$2:$H$101,3,FALSE))) ->  | E27: =IF(A27="","",IF(A27>0,VLOOKUP(A27,Stocks!$A$2:$H$101,6,FALSE))) ->  | H27: 33
B28: =IF(A28="","",IF(A28>H250,VLOOKUP(A28,Stocks!$A$2:$C$101,2,FALSE))) ->  | C28: =IF(A28="","",IF(A28>0,VLOOKUP(A28,Stocks!$A$2:$H$101,3,FALSE))) ->  | E28: =IF(A28="","",IF(A28>0,VLOOKUP(A28,Stocks!$A$2:$H$101,6,FALSE))) ->  | H28: 3
B29: =IF(A29="","",IF(A29>0,VLOOKUP(A29,Stocks!$A$2:$C$101,2,FALSE))) ->  | C29: =IF(A29="","",IF(A29>0,VLOOKUP(A29,Stocks!$A$2:$H$101,3,FALSE))) ->  | E29: =IF(A29="","",IF(A29>0,VLOOKUP(A29,Stocks!$A$2:$H$101,6,FALSE))) ->  | H29: 56
G30: =SUM(G25:G29) -> 0
F41: =SUM(F25:F29) -> 0

Sheet 2015
A1: 2015
A2: 2013 Investment Portfolio | E2: Jan 2014 | F2: # of Shares | G2: Total | H2: Jan, 2015
E3: Stock Price | H3: Stock Price
A4: 1 | B4: =VLOOKUP(C4,Stocks!$A$2:$H$101,2,FALSE) -> Cardinal Health Inc. | C4: ='2014'!H25 -> 15 | D4: =VLOOKUP(C4,Stocks!$A$2:$C$101,3,FALSE) -> CAH | E4: =VLOOKUP(C4,Stocks!$A$2:$H$101,6,FALSE) -> 69.32 | F4: =IF('2014'!F25="",'2014'!F4,'2014'!F25) -> 0 | G4: =E4*F4 -> 0 | I4: =H4-E4 -> -69.32 | J4: =F4*H4 -> 0
A5: 2 | B5: =VLOOKUP(C5,Stocks!$A$2:$H$101,2,FALSE) -> Micron | C5: ='2014'!H26 -> 14 | D5: =VLOOKUP(C5,Stocks!$A$2:$C$101,3,FALSE) -> MU | E5: =VLOOKUP(C5,Stocks!$A$2:$H$101,6,FALSE) -> 20.97 | F5: =IF('2014'!F26="",'2014'!F5,'2014'!F26) -> 0 | G5: =E5*F5 -> 0 | I5: =H5-E5 -> -20.97 | J5: =F5*H5 -> 0 | L5: Stock Portfolio
A6: 3 | B6: =VLOOKUP(C6,Stocks!$A$2:$H$101,2,FALSE) -> Ebay | C6: ='2014'!H27 -> 33 | D6: =VLOOKUP(C6,Stocks!$A$2:$C$101,3,FALSE) -> EBAY | E6: =VLOOKUP(C6,Stocks!$A$2:$H$101,6,FALSE) -> 52.16 | F6: =IF('2014'!F27="",'2014'!F6,'2014'!F27) -> 0 | G6: 0 | I6: -52.16 | J6: 0 | L6: Total Increase: | M6: =J9-G9 -> 0
A7: 4 | B7: =VLOOKUP(C7,Stocks!$A$2:$H$101,2,FALSE) -> Assurant, Inc. | C7: ='2014'!H28 -> 3 | D7: =VLOOKUP(C7,Stocks!$A$2:$C$101,3,FALSE) -> AIZ | E7: =VLOOKUP(C7,Stocks!$A$2:$H$101,6,FALSE) -> 67.74 | F7: =IF('2014'!F28="",'2014'!F7,'2014'!F28) -> 0 | G7: 0 | I7: -67.74 | J7: 0 | L7: 2015 Portfolio: | M7: ='2014'!M10 -> 0
A8: 5 | B8: =VLOOKUP(C8,Stocks!$A$2:$H$101,2,FALSE) -> Southwest Airlines | C8: ='2014'!H29 -> 56 | D8: =VLOOKUP(C8,Stocks!$A$2:$C$101,3,FALSE) -> LUV | E8: =VLOOKUP(C8,Stocks!$A$2:$H$101,6,FALSE) -> 21.22 | F8: =IF('2014'!F29="",'2014'!F8,'2014'!F29) -> 0 | G8: 0 | I8: -21.22 | J8: 0 | L8: 2015 Sell: | M8: =F20 -> 0
G9: =SUM(G4:G8) -> 0 | J9: =SUM(J4:J8) -> 0 | L9: 2015 Buy: | M9: =G30 -> 0
L10: Total Gain | M10: =M7-M8+M9 -> 0
A11: SELL
L12: Cash
L13: Starting Cash | M13: ='2014'!M15 -> 500
D14: Current | F14: Sell | L14: Liquid Assets | M14: =F20-G30 -> 0
D15: =D4 -> CAH | L15: Total Cash | M15: =M13+M14 -> 500
D16: =D5 -> MU
D17: =D6 -> EBAY
D18: =D7 -> AIZ
D19: =D8 -> LUV
F20: =SUM(F15:F19) -> 0
A22: BUY
B24: Buy | F24: Shares | G24: Total
B25: =IF(A25="","",IF(A25>0,VLOOKUP(A25,Stocks!$A$2:$C$101,2,FALSE))) ->  | C25: =IF(A25="","",IF(A25>0,VLOOKUP(A25,Stocks!$A$2:$H$101,3,FALSE))) ->  | E25: =IF(A25="","",IF(A25>0,VLOOKUP(A25,Stocks!$A$2:$H$101,7,FALSE))) ->  | G25: =IF(A25="","",IF(A25>0,E25*F25)) ->  | H25: =IF(A25="",C4,A25) -> 15
B26: =IF(A26="","",IF(A26>0,VLOOKUP(A26,Stocks!$A$2:$C$101,2,FALSE))) ->  | C26: =IF(A26="","",IF(A26>0,VLOOKUP(A26,Stocks!$A$2:$H$101,3,FALSE))) ->  | E26: =IF(A26="","",IF(A26>0,VLOOKUP(A26,Stocks!$A$2:$H$101,7,FALSE))) ->  | G26: =IF(A26="","",IF(A26>0,E26*F26)) ->  | H26: =IF(A26="",C5,A26) -> 14
B27: =IF(A27="","",IF(A27>0,VLOOKUP(A27,Stocks!$A$2:$C$101,2,FALSE))) ->  | C27: =IF(A27="","",IF(A27>0,VLOOKUP(A27,Stocks!$A$2:$H$101,3,FALSE))) ->  | E27: =IF(A27="","",IF(A27>0,VLOOKUP(A27,Stocks!$A$2:$H$101,7,FALSE))) ->  | H27: 33
B28: =IF(A28="","",IF(A28>0,VLOOKUP(A28,Stocks!$A$2:$C$101,2,FALSE))) ->  | C28: =IF(A28="","",IF(A28>0,VLOOKUP(A28,Stocks!$A$2:$H$101,3,FALSE))) ->  | E28: =IF(A28="","",IF(A28>0,VLOOKUP(A28,Stocks!$A$2:$H$101,7,FALSE))) ->  | H28: 3
B29: =IF(A29="","",IF(A29>0,VLOOKUP(A29,Stocks!$A$2:$C$101,2,FALSE))) ->  | C29: =IF(A29="","",IF(A29>0,VLOOKUP(A29,Stocks!$A$2:$H$101,3,FALSE))) ->  | E29: =IF(A29="","",IF(A29>0,VLOOKUP(A29,Stocks!$A$2:$H$101,7,FALSE))) ->  | H29: 56
G30: =SUM(G25:G29) -> 0
F37: =SUM(F25:F29) -> 0

Sheet 2016
A1: 2016
A2: 2014 Investment Portfolio | E2: Jan 2015 | F2: # of Shares | G2: Total | H2: Jan, 2016
E3: Stock Price | H3: Stock Price
A4: 1 | B4: =VLOOKUP(C4,Stocks!$A$2:$H$101,2,FALSE) -> Cardinal Health Inc. | C4: ='2015'!H25 -> 15 | D4: =VLOOKUP(C4,Stocks!$A$2:$C$101,3,FALSE) -> CAH | E4: =VLOOKUP(C4,Stocks!$A$2:$H$101,7,FALSE) -> 80.51 | F4: =IF('2015'!F25="",'2015'!F4,'2015'!F25) -> 0 | G4: =E4*F4 -> 0 | I4: =H4-E4 -> -80.51 | J4: =F4*H4 -> 0
A5: 2 | B5: =VLOOKUP(C5,Stocks!$A$2:$H$101,2,FALSE) -> Micron | C5: ='2015'!H26 -> 14 | D5: =VLOOKUP(C5,Stocks!$A$2:$C$101,3,FALSE) -> MU | E5: =VLOOKUP(C5,Stocks!$A$2:$H$101,7,FALSE) -> 33.53 | F5: =IF('2015'!F26="",'2015'!F5,'2015'!F26) -> 0 | G5: =E5*F5 -> 0 | I5: =H5-E5 -> -33.53 | J5: =F5*H5 -> 0 | L5: Stock Portfolio
A6: 3 | B6: =VLOOKUP(C6,Stocks!$A$2:$H$101,2,FALSE) -> Ebay | C6: ='2015'!H27 -> 33 | D6: =VLOOKUP(C6,Stocks!$A$2:$C$101,3,FALSE) -> EBAY | E6: =VLOOKUP(C6,Stocks!$A$2:$H$101,7,FALSE) -> 53 | F6: =IF('2015'!F27="",'2015'!F6,'2015'!F27) -> 0 | G6: 0 | I6: -53 | J6: 0 | L6: Total Increase: | M6: =J9-G9 -> 0
A7: 4 | B7: =VLOOKUP(C7,Stocks!$A$2:$H$101,2,FALSE) -> Assurant, Inc. | C7: ='2015'!H28 -> 3 | D7: =VLOOKUP(C7,Stocks!$A$2:$C$101,3,FALSE) -> AIZ | E7: =VLOOKUP(C7,Stocks!$A$2:$H$101,7,FALSE) -> 65.18 | F7: =IF('2015'!F28="",'2015'!F7,'2015'!F28) -> 0 | G7: 0 | I7: -65.18 | J7: 0 | L7: 2016 Portfolio: | M7: =J9 -> 0
A8: 5 | B8: =VLOOKUP(C8,Stocks!$A$2:$H$101,2,FALSE) -> Southwest Airlines | C8: ='2015'!H29 -> 56 | D8: =VLOOKUP(C8,Stocks!$A$2:$C$101,3,FALSE) -> LUV | E8: =VLOOKUP(C8,Stocks!$A$2:$H$101,7,FALSE) -> 40.75 | F8: =IF('2015'!F29="",'2015'!F8,'2015'!F29) -> 0 | G8: 0 | I8: -40.75 | J8: 0 | L8: 2016 Sell: | M8: =F20 -> 0
G9: =SUM(G4:G8) -> 0 | J9: =SUM(J4:J8) -> 0 | L9: 2016 Buy: | M9: =G30 -> 0
M10: =M7-M8+M9 -> 0
A11: SELL
L12: Cash
L13: Starting Cash | M13: ='2015'!M15 -> 500
D14: Current | F14: Sell | L14: Liquid Assets | M14: =F20-G30 -> 0
D15: =D4 -> CAH | L15: Total Cash | M15: =M13+M14 -> 500
D16: =D5 -> MU
D17: =D6 -> EBAY
D18: =D7 -> AIZ
D19: =D8 -> LUV
F20: =SUM(F15:F19) -> 0
A22: BUY
B24: Buy | F24: Shares | G24: Total
B25: =IF(A25="","",IF(A25>0,VLOOKUP(A25,Stocks!$A$2:$C$101,2,FALSE))) ->  | C25: =IF(A25="","",IF(A25>0,VLOOKUP(A25,Stocks!$A$2:$H$101,3,FALSE))) ->  | E25: =IF(A25="","",IF(A25>0,VLOOKUP(A25,Stocks!$A$2:$H$101,8,FALSE))) ->  | G25: =IF(A25="","",IF(A25>0,E25*F25)) ->  | H25: =IF(A25="",C4,A25) -> 15
B26: =IF(A26="","",IF(A26>0,VLOOKUP(A26,Stocks!$A$2:$C$101,2,FALSE))) ->  | C26: =IF(A26="","",IF(A26>0,VLOOKUP(A26,Stocks!$A$2:$H$101,3,FALSE))) ->  | E26: =IF(A26="","",IF(A26>0,VLOOKUP(A26,Stocks!$A$2:$H$101,8,FALSE))) ->  | G26: =IF(A26="","",IF(A26>0,E26*F26)) ->  | H26: =IF(A26="",C5,A26) -> 14
B27: =IF(A27="","",IF(A27>0,VLOOKUP(A27,Stocks!$A$2:$C$101,2,FALSE))) ->  | C27: =IF(A27="","",IF(A27>0,VLOOKUP(A27,Stocks!$A$2:$H$101,3,FALSE))) ->  | E27: =IF(A27="","",IF(A27>0,VLOOKUP(A27,Stocks!$A$2:$H$101,8,FALSE))) ->  | H27: 33
B28: =IF(A28="","",IF(A28>0,VLOOKUP(A28,Stocks!$A$2:$C$101,2,FALSE))) ->  | C28: =IF(A28="","",IF(A28>0,VLOOKUP(A28,Stocks!$A$2:$H$101,3,FALSE))) ->  | E28: =IF(A28="","",IF(A28>0,VLOOKUP(A28,Stocks!$A$2:$H$101,8,FALSE))) ->  | H28: 3
B29: =IF(A29="","",IF(A29>0,VLOOKUP(A29,Stocks!$A$2:$C$101,2,FALSE))) ->  | C29: =IF(A29="","",IF(A29>0,VLOOKUP(A29,Stocks!$A$2:$H$101,3,FALSE))) ->  | E29: =IF(A29="","",IF(A29>0,VLOOKUP(A29,Stocks!$A$2:$H$101,8,FALSE))) ->  | H29: 56
G30: =SUM(G25:G29) -> 0
F40: =SUM(F25:F29) -> 0

Sheet 2017
A1: 2016
A2: 2014 Investment Portfolio | E2: Jan 2016 | F2: # of Shares | G2: Total | H2: Jan, 2017
E3: Stock Price | H3: Stock Price
A4: 1 | B4: =VLOOKUP(C4,Stocks!$A$2:$H$101,2,FALSE) -> Cardinal Health Inc. | C4: ='2016'!H25 -> 15 | D4: =VLOOKUP(C4,Stocks!$A$2:$C$101,3,FALSE) -> CAH | E4: =VLOOKUP(C4,Stocks!$A$2:$H$101,7,FALSE) -> 80.51 | F4: =IF('2016'!F25="",'2016'!F4,'2016'!F25) -> 0 | G4: =E4*F4 -> 0 | I4: =H4-E4 -> -80.51 | J4: =F4*H4 -> 0
A5: 2 | B5: =VLOOKUP(C5,Stocks!$A$2:$H$101,2,FALSE) -> Micron | C5: ='2016'!H26 -> 14 | D5: =VLOOKUP(C5,Stocks!$A$2:$C$101,3,FALSE) -> MU | E5: =VLOOKUP(C5,Stocks!$A$2:$H$101,7,FALSE) -> 33.53 | F5: =IF('2016'!F26="",'2016'!F5,'2016'!F26) -> 0 | G5: =E5*F5 -> 0 | I5: =H5-E5 -> -33.53 | J5: =F5*H5 -> 0 | L5: Stock Portfolio
A6: 3 | B6: =VLOOKUP(C6,Stocks!$A$2:$H$101,2,FALSE) -> Ebay | C6: ='2016'!H27 -> 33 | D6: =VLOOKUP(C6,Stocks!$A$2:$C$101,3,FALSE) -> EBAY | E6: =VLOOKUP(C6,Stocks!$A$2:$H$101,7,FALSE) -> 53 | F6: =IF('2016'!F27="",'2016'!F6,'2016'!F27) -> 0 | G6: 0 | I6: -53 | J6: 0 | L6: Total Increase: | M6: =J9-G9 -> 0
A7: 4 | B7: =VLOOKUP(C7,Stocks!$A$2:$H$101,2,FALSE) -> Assurant, Inc. | C7: ='2016'!H28 -> 3 | D7: =VLOOKUP(C7,Stocks!$A$2:$C$101,3,FALSE) -> AIZ | E7: =VLOOKUP(C7,Stocks!$A$2:$H$101,7,FALSE) -> 65.18 | F7: =IF('2016'!F28="",'2016'!F7,'2016'!F28) -> 0 | G7: 0 | I7: -65.18 | J7: 0 | L7: 2017 Portfolio: | M7: =J9 -> 0
A8: 5 | B8: =VLOOKUP(C8,Stocks!$A$2:$H$101,2,FALSE) -> Southwest Airlines | C8: ='2016'!H29 -> 56 | D8: =VLOOKUP(C8,Stocks!$A$2:$C$101,3,FALSE) -> LUV | E8: =VLOOKUP(C8,Stocks!$A$2:$H$101,7,FALSE) -> 40.75 | F8: =IF('2016'!F29="",'2016'!F8,'2016'!F29) -> 0 | G8: 0 | I8: -40.75 | J8: 0 | L8: 2017 Sell: | M8: =F20 -> 0
G9: =SUM(G4:G8) -> 0 | J9: =SUM(J4:J8) -> 0 | L9: 2017 Buy: | M9: =G30 -> 0
M10: =M7-M8+M9 -> 0
A11: SELL
L12: Cash
L13: Starting Cash | M13: ='2015'!M15 -> 500
D14: Current | F14: Sell | L14: Liquid Assets | M14: =F20-G30 -> 0
D15: =D4 -> CAH | L15: Total Cash | M15: =M13+M14 -> 500
D16: =D5 -> MU
D17: =D6 -> EBAY
D18: =D7 -> AIZ
D19: =D8 -> LUV
F20: =SUM(F15:F19) -> 0
A22: BUY
B24: Buy | F24: Shares | G24: Total
B25: =IF(A25="","",IF(A25>0,VLOOKUP(A25,Stocks!$A$2:$C$101,2,FALSE))) ->  | C25: =IF(A25="","",IF(A25>0,VLOOKUP(A25,Stocks!$A$2:$H$101,3,FALSE))) ->  | E25: =IF(A25="","",IF(A25>0,VLOOKUP(A25,Stocks!$A$2:$H$101,8,FALSE))) ->  | G25: =IF(A25="","",IF(A25>0,E25*F25)) ->  | H25: =IF(A25="",C4,A25) -> 15
B26: =IF(A26="","",IF(A26>0,VLOOKUP(A26,Stocks!$A$2:$C$101,2,FALSE))) ->  | C26: =IF(A26="","",IF(A26>0,VLOOKUP(A26,Stocks!$A$2:$H$101,3,FALSE))) ->  | E26: =IF(A26="","",IF(A26>0,VLOOKUP(A26,Stocks!$A$2:$H$101,8,FALSE))) ->  | G26: =IF(A26="","",IF(A26>0,E26*F26)) ->  | H26: =IF(A26="",C5,A26) -> 14
B27: =IF(A27="","",IF(A27>0,VLOOKUP(A27,Stocks!$A$2:$C$101,2,FALSE))) ->  | C27: =IF(A27="","",IF(A27>0,VLOOKUP(A27,Stocks!$A$2:$H$101,3,FALSE))) ->  | E27: =IF(A27="","",IF(A27>0,VLOOKUP(A27,Stocks!$A$2:$H$101,8,FALSE))) ->  | H27: 33
B28: =IF(A28="","",IF(A28>0,VLOOKUP(A28,Stocks!$A$2:$C$101,2,FALSE))) ->  | C28: =IF(A28="","",IF(A28>0,VLOOKUP(A28,Stocks!$A$2:$H$101,3,FALSE))) ->  | E28: =IF(A28="","",IF(A28>0,VLOOKUP(A28,Stocks!$A$2:$H$101,8,FALSE))) ->  | H28: 3
B29: =IF(A29="","",IF(A29>0,VLOOKUP(A29,Stocks!$A$2:$C$101,2,FALSE))) ->  | C29: =IF(A29="","",IF(A29>0,VLOOKUP(A29,Stocks!$A$2:$H$101,3,FALSE))) ->  | E29: =IF(A29="","",IF(A29>0,VLOOKUP(A29,Stocks!$A$2:$H$101,8,FALSE))) ->  | H29: 56
G30: =SUM(G25:G29) -> 0
F39: =SUM(F25:F29) -> 0

Sheet Today
A1: Today
A2: 2015 Investment Portfolio | E2: Jan 2017 | F2: # of Shares | G2: Total | H2: Today's
E3: Stock Price | H3: Stock Price
A4: 1 | B4: =IF('2017'!B25="",'2017'!B4,'2017'!B25) -> Cardinal Health Inc. | C4: ='2017'!H25 -> 15 | D4: =VLOOKUP(C4,Stocks!$A$2:$C$101,3,FALSE) -> CAH | E4: =VLOOKUP(C4,Stocks!$A$2:$N$101,9,FALSE) -> 73.72 | F4: =IF('2017'!F25="",'2017'!F4,'2017'!F25) -> 0 | G4: =E4*F4 -> 0 | I4: =H4-E4 -> -73.72 | J4: =F4*H4 -> 0
A5: 2 | B5: =IF('2017'!B26="",'2017'!B5,'2017'!B26) -> Micron | C5: ='2017'!H26 -> 14 | D5: =VLOOKUP(C5,Stocks!$A$2:$C$101,3,FALSE) -> MU | E5: =VLOOKUP(C5,Stocks!$A$2:$N$101,9,FALSE) -> 22.55 | F5: =IF('2017'!F26="",'2017'!F5,'2017'!F26) -> 0 | G5: =E5*F5 -> 0 | I5: =H5-E5 -> -22.55 | J5: =F5*H5 -> 0 | L5: Stock Portfolio
A6: 3 | B6: =IF('2017'!B27="",'2017'!B6,'2017'!B27) -> Ebay | C6: ='2017'!H27 -> 33 | D6: =VLOOKUP(C6,Stocks!$A$2:$C$101,3,FALSE) -> EBAY | E6: =VLOOKUP(C6,Stocks!$A$2:$N$101,9,FALSE) -> 37.33 | F6: =IF('2017'!F27="",'2017'!F6,'2017'!F27) -> 0 | G6: 0 | I6: -37.33 | J6: 0 | L6: Total Increase: | M6: =J9-G9 -> 0
A7: 4 | B7: =IF('2017'!B28="",'2017'!B7,'2017'!B28) -> Assurant, Inc. | C7: ='2017'!H28 -> 3 | D7: =VLOOKUP(C7,Stocks!$A$2:$C$101,3,FALSE) -> AIZ | E7: =VLOOKUP(C7,Stocks!$A$2:$N$101,9,FALSE) -> 95.98 | F7: =IF('2017'!F28="",'2017'!F7,'2017'!F28) -> 0 | G7: 0 | I7: -95.98 | J7: 0 | L7: Today's Portfolio: | M7: =J9 -> 0
A8: 5 | B8: =IF('2017'!B29="",'2017'!B8,'2017'!B29) -> Southwest Airlines | C8: ='2017'!H29 -> 56 | D8: =VLOOKUP(C8,Stocks!$A$2:$C$101,3,FALSE) -> LUV | E8: =VLOOKUP(C8,Stocks!$A$2:$N$101,9,FALSE) -> 50.3 | F8: =IF('2017'!F29="",'2017'!F8,'2017'!F29) -> 0 | G8: 0 | I8: -50.3 | J8: 0 | L8: Liquid Assets: | M8: ='2016'!M15 -> 500
G9: =SUM(G4:G8) -> 0 | J9: =SUM(J4:J8) -> 0 | M9: =SUM(M7:M8) -> 500
H21: =SUM(H4:H8) -> 0

Sheet Stocks (hidden)
D1: 2012 | E1: 2013 | F1: 2014 | G1: 2015 | H1: 2016 | I1: 2017
A2: 1 | B2: Apple | C2: AAPL | D2: 59.97 | E2: 74.33 | F2: 76.13 | G2: 109.33 | H2: 96.96 | I2: 118.99 | J2: NASDAQ
A3: 2 | B3: Kroger Co. | C3: KR | D3: 12.06 | E3: 13.23 | F3: 19.55 | G3: 34.53 | H3: 38.81 | I3: 33.24 | J3: NYSE
A4: 3 | B4: Assurant, Inc. | C4: AIZ | D4: 41.17 | E4: 36.19 | F4: 67.74 | G4: 65.18 | H4: 77.4 | I4: 95.98 | J4: NYSE
A5: 4 | B5: Allstate | C5: ALL | D5: 23.98 | E5: 43.21 | F5: 54.09 | G5: 70.42 | H5: 58.44 | I5: 73.09 | J5: NYSE
A6: 5 | B6: McKesson Corporation | C6: MCK | D6: 77.24 | E6: 103.98 | F6: 160.71 | G6: 213.98 | H6: 170.18 | I6: 136.74 | J6: NASDAQ
A7: 6 | B7: Teva Pharmeceutical | C7: TEVA | D7: 45.05 | E7: 37.73 | F7: 39.88 | G7: 56.22 | H7: 63.7 | I7: 34.59
A8: 7 | B8: Avery Dennison Corp | C8: AVY | D8: 28.8 | E8: 35.93 | F8: 51.15 | G8: 51.79 | H8: 58.16 | I8: 73.17 | J8: NYSE
A9: 8 | B9: American Express | C9: AXP | D9: 49.76 | E9: 59.61 | F9: 86.95 | G9: 93.02 | H9: 54.52 | I9: 76.69 | J9: NYSE
A10: 9 | B10: Bank of America Corp | C10: BAC | D10: 6.61 | E10: 12.11 | F10: 16.41 | G10: 15.73 | H10: 13.69 | I10: 22.68 | J10: NYSE
A11: 10 | B11: Intel Corporation | C11: INTC | D11: 25.25 | E11: 21.16 | F11: 25.85 | G11: 36.45 | H11: 31.51 | I11: 37.98
A12: 11 | B12: Build-a-Bear Workshop | C12: BBW | D12: 7.87 | E12: 4.61 | F12: 8.73 | G12: 22.44 | H12: 12.89 | I12: 13.85 | J12: NYSE
A13: 12 | B13: Barnes & Noble | C13: BKS | D13: 16.16 | E13: 12.76 | F13: 14.68 | G13: 24.8 | H13: 8.08 | I13: 11.1 | J13: NYSE
A14: 13 | B14: Citigroup | C14: C | D14: 28.55 | E14: 42.43 | F14: 54.72 | G14: 46.95 | H14: 41.06 | I14: 59.23 | J14: NYSE
A15: 14 | B15: Micron | C15: MU | D15: 7.76 | E15: 7.89 | F15: 20.97 | G15: 33.53 | H15: 11.07 | I15: 22.55
A16: 15 | B16: Cardinal Health Inc. | C16: CAH | D16: 41.52 | E16: 44.64 | F16: 69.32 | G16: 80.51 | H16: 79.27 | I16: 73.72 | J16: NYSE
A17: 16 | B17: CBS Corporation | C17: CBS | D17: 27.79 | E17: 40.42 | F17: 63.14 | G17: 54.79 | H17: 45.88 | I17: 65.74 | J17: NYSE
A18: 17 | B18: Carnival Corp | C18: CCL | D18: 34.28 | E18: 37.06 | F18: 41.36 | G18: 46.3 | H18: 49.57 | I18: 55.83 | J18: NYSE
A19: 18 | B19: Colgate | C19: CL | D19: 44.9 | E19: 53.55 | F19: 64.7 | G19: 69.3 | H19: 62.81 | I19: 67.36 | J19: NYSE
A20: 19 | B20: Comcast Corporation | C20: CMCSA | D20: 25.38 | E20: 38.46 | F20: 51.07 | G20: 56.31 | H20: 53.55 | I20: 35.08 | J20: NASDAQ
A21: 20 | B21: Cinemark Holdings Inc. | C21: CNK | D21: 19.76 | E21: 27.22 | F21: 32.42 | G21: 37.17 | H21: 31.03 | I21: 40.82 | J21: NYSE
A22: 21 | B22: Costco | C22: COST | D22: 81.13 | E22: 101.2 | F22: 117.29 | G22: 141.61 | H22: 154.82 | I22: 162.91 | J22: NASDAQ
A23: 22 | B23: Campbell Soup Company | C23: CPB | D23: 31.75 | E23: 36.29 | F23: 41.79 | G23: 45.75 | H23: 50.82 | I23: 62.29 | J23: NYSE | S23: 2012 | T23: 2013 | U23: 2014 | V23: 2015 | W23: 2016 | X23: 2017
A24: 23 | B24: Cirrus Logic | C24: CRUS | D24: 16.5 | E24: 29.39 | F24: 17.51 | G24: 26.5 | H24: 25.76 | I24: 61.74 | J24: NASDAQ | S24: 1st Buy | T24: 2nd Buy | U24: 3rd Buy | V24: 4th Buy | W24: 5th Buy | X24: 6th Buy
A25: 24 | B25: Century Link | C25: CTL | D25: 36.59 | E25: 40.02 | F25: 31.6 | G25: 38.4 | H25: 22.24 | I25: 25.48 | J25: NYSE | S25: =IF('2013'!F15=0,"",IF('2013'!F15>0,RANDBETWEEN(1,100))) ->  | T25: =IF('2014'!F15=0,"",IF('2014'!F15>0,RANDBETWEEN(1,100))) ->  | U25: =IF('2015'!F15=0,"",IF('2015'!F15>0,RANDBETWEEN(1,100))) ->  | V25: =IF('2016'!F15=0,"",IF('2016'!F15>0,RANDBETWEEN(1,100))) ->  | W25: =IF('2017'!F15=0,"",IF('2016'!F15>0,RANDBETWEEN(1,100))) ->  | X25: =IF('2017'!F15=0,"",IF('2017'!F15>0,RANDBETWEEN(1,100))) -> 
A26: 25 | B26: Delta Airlines | C26: DAL | D26: 8.85 | E26: 12.98 | F26: 29.23 | G26: 50.56 | H26: 44.5 | I26: 49.7 | J26: NYSE | S26: =IF('2013'!F16=0,"",IF('2013'!F16>0,RANDBETWEEN(1,100))) ->  | T26: =IF('2014'!F16=0,"",IF('2014'!F16>0,RANDBETWEEN(1,100))) ->  | U26: =IF('2015'!F16=0,"",IF('2015'!F16>0,RANDBETWEEN(1,100))) ->  | V26: =IF('2016'!F16=0,"",IF('2016'!F16>0,RANDBETWEEN(1,100))) ->  | W26: =IF('2016'!F16=0,"",IF('2016'!F16>0,RANDBETWEEN(1,100))) ->  | X26: =IF('2017'!F16=0,"",IF('2017'!F16>0,RANDBETWEEN(1,100))) -> 
A27: 26 | B27: 3D Systems | C27: DDD | D27: 12.27 | E27: 39.23 | F27: 96.42 | G27: 29.08 | H27: 6.42 | I27: 17 | J27: NYSE | S27: =IF('2013'!F17=0,"",IF('2013'!F17>0,RANDBETWEEN(1,100))) ->  | T27: =IF('2014'!F17=0,"",IF('2014'!F17>0,RANDBETWEEN(1,100))) ->  | U27: =IF('2015'!F17=0,"",IF('2015'!F17>0,RANDBETWEEN(1,100))) ->  | V27: =IF('2016'!F17=0,"",IF('2016'!F17>0,RANDBETWEEN(1,100))) ->  | W27: =IF('2016'!F17=0,"",IF('2016'!F17>0,RANDBETWEEN(1,100))) ->  | X27: =IF('2017'!F17=0,"",IF('2017'!F17>0,RANDBETWEEN(1,100))) -> 
A28: 27 | B28: Walt Disney Co | C28: DIS | D28: 38.4 | E28: 52.19 | F28: 75.39 | G28: 93.75 | H28: 99.25 | I28: 108.16 | J28: NYSE | S28: =IF('2013'!F18=0,"",IF('2013'!F18>0,RANDBETWEEN(1,100))) ->  | T28: =IF('2014'!F18=0,"",IF('2014'!F18>0,RANDBETWEEN(1,100))) ->  | U28: =IF('2015'!F18=0,"",IF('2015'!F18>0,RANDBETWEEN(1,100))) ->  | V28: =IF('2016'!F18=0,"",IF('2016'!F18>0,RANDBETWEEN(1,100))) ->  | W28: =IF('2016'!F18=0,"",IF('2016'!F18>0,RANDBETWEEN(1,100))) ->  | X28: =IF('2017'!F18=0,"",IF('2017'!F18>0,RANDBETWEEN(1,100))) -> 
A29: 28 | B29: Dick's Sporting Goods | C29: DKS | D29: 34.64 | E29: 48.82 | F29: 57.59 | G29: 49.94 | H29: 35.83 | I29: 54.62 | J29: NYSE | S29: =IF('2013'!F19=0,"",IF('2013'!F19>0,RANDBETWEEN(1,100))) ->  | T29: =IF('2014'!F19=0,"",IF('2014'!F19>0,RANDBETWEEN(1,100))) ->  | U29: =IF('2015'!F19=0,"",IF('2015'!F19>0,RANDBETWEEN(1,100))) ->  | V29: =IF('2016'!F19=0,"",IF('2016'!F19>0,RANDBETWEEN(1,100))) ->  | W29: =IF('2016'!F19=0,"",IF('2016'!F19>0,RANDBETWEEN(1,100))) ->  | X29: =IF('2017'!F19=0,"",IF('2017'!F19>0,RANDBETWEEN(1,100))) -> 
A30: 29 | B30: Dr Pepper Snapple | C30: DPS | D30: 37.67 | E30: 45.3 | F30: 47.88 | G30: 71.6 | H30: 89.16 | I30: 90.02 | J30: NYSE
A31: 30 | B31: Realty Income Corp | C31: O | D31: 33.83 | E31: 34.79 | F31: 38.41 | G31: 48.62 | H31: 54.04 | I31: 59.84
A32: 31 | B32: GEO Group | C32: GEO | D32: 17.41 | E32: 32.49 | F32: 33.48 | G32: 41.51 | H32: 29 | I32: 16.92 | J32: NYSE
A33: 32 | B33: EA Games | C33: EA | D33: 18.04 | E33: 14.46 | F33: 24.1 | G33: 54.86 | H33: 64.48 | I33: 79.17 | J33: NASDAQ
A34: 33 | B34: Ebay | C34: EBAY | D34: 30.63 | E34: 54.21 | F34: 52.16 | G34: 53 | H34: 25.86 | I34: 37.33 | J34: NYSE
A35: 34 | B35: Ford | C35: F | D35: 11.71 | E35: 13.68 | F35: 15.51 | G35: 15.21 | H35: 12.54 | I35: 12.85 | J35: NYSE
A36: 35 | B36: Fedex | C36: FDX | D36: 85.49 | E36: 94.91 | F36: 142.63 | G36: 176.01 | H36: 134.71 | I36: 190.25 | J36: NYSE
A37: 36 | B37: 21st Century Fox | C37: FOX | D37: 18.92 | E37: 27.83 | F37: 34.66 | G37: 31.85 | H37: 25.89 | I37: 29 | J37: NASDAQ
A38: 37 | B38: General Electric | C38: GE | D38: 18.65 | E38: 21.13 | F38: 25.13 | G38: 23.59 | H38: 28.58 | I38: 31.21 | J38: NYSE
A39: 38 | B39: General Motors | C39: GM | D39: 22.92 | E39: 29.07 | F39: 36.08 | G39: 32.62 | H39: 30.3 | I39: 35.15 | J39: NYSE
A40: 39 | B40: Game Stop | C40: GME | D40: 24.87 | E40: 23.71 | F40: 37.65 | G40: 32.27 | H40: 28.45 | I40: 23.93 | J40: NYSE
A41: 40 | B41: Rangold Resources LTD | C41: GOLD | D41: 106.75 | E41: 95.83 | F41: 70.11 | G41: 74.91 | H41: 60.99 | I41: 82.71 | J41: NASDAQ
A42: 41 | B42: Gap Inc. | C42: GPS | D42: 18 | E42: 33.54 | F42: 37.3 | G42: 42.02 | H42: 23.36 | I42: 23.97 | J42: NYSE
A43: 42 | B43: Goldman Sachs | C43: GS | D43: 108.74 | E43: 137.13 | F43: 178.39 | G43: 180.49 | H43: 164.62 | I43: 233.68 | J43: NYSE
A44: 43 | B44: Honda | C44: HMC | D44: 32.13 | E44: 37.75 | F44: 39.76 | G44: 31.17 | H44: 27.62 | I44: 30.16 | J44: NYSE
A45: 44 | B45: Hewlett Packard | C45: HPQ | D45: 26.4 | E45: 16.16 | F45: 28.34 | G45: 36.13 | H45: 10.58 | I45: 14.58 | J45: NYSE
A46: 45 | B46: Hershey Co. | C46: HSY | D46: 60.69 | E46: 74.54 | F46: 95.81 | G46: 110.66 | H46: 83.32 | I46: 104.83 | J46: NYSE
A47: 46 | B47: Jet Blue | C47: JBLU | D47: 5.45 | E47: 5.95 | F47: 9.05 | G47: 14.85 | H47: 20.287 | I47: 21.34 | J47: NYSE
A48: 47 | B48: Johnson & Johnson | C48: JNJ | D48: 65.27 | E48: 71.55 | F48: 94.74 | G48: 104.52 | H48: 100.9 | I48: 114.2 | J48: NYSE
A49: 48 | B49: JP Morgan | C49: JPM | D49: 35.36 | E49: 47.16 | F49: 58.49 | G49: 54.38 | H49: 58.96 | I49: 86.11 | J49: NYSE
A50: 49 | B50: Nordstrom | C50: JWN | D50: 49.74 | E50: 55.12 | F50: 61.11 | G50: 78.5 | H50: 50.13 | I50: 44.9 | J50: NYSE
A51: 50 | B51: Kellog Stock | C51: K | D51: 50.81 | E51: 57.02 | F51: 60.58 | G51: 68.68 | H51: 72.01 | I51: 71.98 | J51: NYSE
A52: 51 | B52: Kimberly Clark Corp | C52: KMB | D52: 72.7 | E52: 85.1 | F52: 104.35 | G52: 107.96 | H52: 125.71 | I52: 114.36 | J52: NYSE
A53: 52 | B53: The Coca-Cola Co | C53: KO | D53: 33.5 | E53: 38.77 | F53: 40.13 | G53: 43.31 | H53: 41.51 | I53: 41.32 | J53: NYSE
A54: 53 | B54: Hyatt Hotels Corporation | C54: H | D54: 45.76 | E54: 40.49 | F54: 49.8 | G54: 58.56 | H54: 36.99 | I54: 54.78
A55: 54 | B55: L-3 Communications | C55: LLL | D55: 67.07 | E55: 77.71 | F55: 106.32 | G55: 125.67 | H55: 108.05 | I55: 152.29 | J55: NYSE
A56: 55 | B56: Logitech | C56: LOGI | D56: 8.05 | E56: 7.24 | F56: 15.46 | G56: 14.94 | H56: 13.78 | I56: 25.12 | J56: NASDAQ
A57: 56 | B57: Southwest Airlines | C57: LUV | D57: 8.52 | E57: 11.26 | F57: 21.22 | G57: 40.75 | H57: 42.85 | I57: 50.3 | J57: NYSE
A58: 57 | B58: La-Z Boy Incorporated | C58: LZB | D58: 12.77 | E58: 15.27 | F58: 30.97 | G58: 27.01 | H58: 22.36 | I58: 29.1 | J58: NYSE
A59: 58 | B59: Macy's, Inc. | C59: M | D59: 34.56 | E59: 36.89 | F59: 56.23 | G59: 65.83 | H59: 36.15 | I59: 35.84 | J59: NYSE
A60: 59 | B60: Mattel Inc. | C60: MAT | D60: 29.35 | E60: 38.03 | F60: 46.87 | G60: 27.82 | H60: 26.92 | I60: 29.91 | J60: NASDAQ
A61: 60 | B61: McDonalds | C61: MCD | D61: 101.74 | E61: 91.73 | F61: 96.54 | G61: 89.56 | H61: 115.48 | I61: 119.48 | J61: NYSE
A62: 61 | B62: Metlife | C62: MET | D62: 35.24 | E62: 35.95 | F62: 54.1 | G62: 53.91 | H62: 43 | I62: 53.7 | J62: NYSE
A63: 62 | B63: 3M | C63: MMM | D63: 87.46 | E63: 100.59 | F63: 138.45 | G63: 161.62 | H63: 147.46 | I63: 178.32 | J63: NYSE
A64: 63 | B64: Microsoft | C64: MSFT | D64: 28.11 | E64: 26.74 | F64: 36.91 | G64: 47.18 | H64: 51.64 | I64: 62.3 | J64: NASDAQ
A65: 64 | B65: Motorolla | C65: MSI | D65: 46.55 | E65: 57.5 | F65: 66.1 | G65: 65.11 | H65: 60.36 | I65: 82.89 | J65: NYSE
A66: 65 | B66: Nestle | C66: NESN | D66: 53.2 | E66: 63.4 | F66: 66.85 | G66: 64.8 | H66: 73.05 | I66: 74.45 | J66: NYSE
A67: 66 | B67: Newmarket Corp | C67: NEU | D67: 218.6 | E67: 286.54 | F67: 333.61 | G67: 402.09 | H67: 368.02 | I67: 424.31 | J67: NYSE
A68: 67 | B68: Nike | C68: NKE | D68: 50.88 | E68: 53.29 | F68: 73.39 | G68: 95.99 | H68: 58.78 | I68: 51.98 | J68: NYSE
A69: 68 | B69: Nokia | C69: NOK | D69: 5.24 | E69: 4.18 | F69: 7.79 | G69: 7.55 | H69: 7.46 | I69: 4.92 | J69: NYSE
A70: 69 | B70: Nu Skin Enterprises | C70: NUS | D70: 47.26 | E70: 45.08 | F70: 137.68 | G70: 41.61 | H70: 32.3 | I70: 49.87 | J70: NYSE
A71: 70 | B71: Newell Rubbermaid | C71: NWL | D71: 17.19 | E71: 21.8 | F71: 32.4 | G71: 38.16 | H71: 36.2 | I71: 46.68 | J71: NYSE
A72: 71 | B72: HCA Holdings | C72: HCA | D72: 23.9 | E72: 31.94 | F72: 51.41 | G72: 73.97 | H72: 67.83 | I72: 79.31 | J72: NYSE
A73: 72 | B73: PepsiCo Inc. | C73: PEP | D73: 65.39 | E73: 70.88 | F73: 83.5 | G73: 96.82 | H73: 97.44 | I73: 101.81 | J73: NYSE
A74: 73 | B74: Procter & Gamble Co | C74: PG | D74: 65.81 | E74: 69.22 | F74: 80.3 | G74: 84.29 | H74: 77.86 | I74: 86.06 | J74: NYSE
A75: 74 | B75: Progressive Corp. | C75: PGR | D75: 20.43 | E75: 22.72 | F75: 25.94 | G75: 26.92 | H75: 30.64 | I75: 36.03 | J75: NYSE
A76: 75 | B76: Pier 1 Imports | C76: PIR | D76: 15 | E76: 22.02 | F76: 21.57 | G76: 16.36 | H76: 4.09 | I76: 8.7 | J76: NYSE
A77: 76 | B77: Dominion Energy | C77: D | D77: 43.39 | E77: 49.56 | F77: 52.43 | G77: 67.78 | H77: 76.89 | I77: 75.21
A78: 77 | B78: Royal Caribbean Cruises | C78: RCL | D78: 25.5 | E78: 38.42 | F78: 49.09 | G78: 82.95 | H78: 85.48 | I78: 84.33 | J78: NYSE
A79: 78 | B79: Regeneron Pharmaceuticals | C79: REGN | D79: 65.79 | E79: 179.46 | F79: 271.75 | G79: 408.69 | H79: 463.46 | I79: 379.7 | J79: NASDAQ
A80: 79 | B80: Sturm, Ruger & Company | C80: RGR | D80: 38.68 | E80: 47.51 | F80: 80.55 | G80: 38.71 | H80: 51.89 | I80: 54.14 | J80: NYSE
A81: 80 | B81: Starbucks Corporation | C81: SBUX | D81: 23.68 | E81: 27.4 | F81: 38.84 | G81: 39.9 | H81: 58.65 | I81: 58.03 | J81: NYSE
A82: 81 | B82: JM Smucker Co | C82: SJM | D82: 78.59 | E82: 90.2 | F82: 101.51 | G82: 101.86 | H82: 122.38 | I82: 129.04 | J82: NYSE
A83: 82 | B83: Sony | C83: SNE | D83: 17.44 | E83: 11.09 | F83: 15.75 | G83: 22.6 | H83: 22.21 | I83: 28.96 | J83: NYSE
A84: 83 | B84: Smith & Wesson | C84: SWHC | D84: 4.74 | E84: 9.02 | F84: 13.43 | G84: 10.02 | H84: 20.55 | I84: 20.8 | J84: NASDAQ
A85: 84 | B85: AT&T | C85: T | D85: 30.51 | E85: 33.44 | F85: 34.8 | G85: 33.37 | H85: 34.59 | I85: 40.81 | J85: NYSE
A86: 85 | B86: Target | C86: TGT | D86: 50.17 | E86: 61.54 | F86: 60.24 | G86: 74.94 | H86: 71.38 | I86: 65.39 | J86: NYSE
A87: 86 | B87: Toyota | C87: TM | D87: 71.4 | E87: 96.1 | F87: 119.19 | G87: 128.88 | H87: 112.6 | I87: 119.64 | J87: NYSE
A88: 87 | B88: Pandora Media | C88: P | D88: 10.01 | E88: 11.54 | F88: 33.47 | G88: 17.57 | H88: 13.41 | I88: 12.47
A89: 88 | B89: Tesla Motors | C89: TSLA | D89: 26.6 | E89: 34.52 | F89: 145.72 | G89: 219.31 | H89: 207.85 | I89: 238.36 | J89: NASDAQ
A90: 89 | B90: Tyler Technologies | C90: TYL | D90: 31.81 | E90: 50.01 | F90: 105.45 | G90: 107.85 | H90: 163.79 | I90: 146.61 | J90: NYSE
A91: 90 | B91: Under Armour Inc. | C91: UA | D91: 19.29 | E91: 24.04 | F91: 41 | G91: 69.82 | H91: 80.15 | I91: 30.38 | J91: NYSE
A92: 91 | B92: UnitedHealth Group | C92: UNH | D92: 52.27 | E92: 52.09 | F92: 74.7 | G92: 100.78 | H92: 109.23 | I92: 161.95 | J92: NYSE
A93: 92 | B93: United Parcel Service | C93: UPS | D93: 73.48 | E93: 76.57 | F93: 96.33 | G93: 98.87 | H93: 88.7 | I93: 116.05 | J93: NYSE
A94: 93 | B94: Visa Inc. | C94: V | D94: 25.18 | E94: 39.19 | F94: 58.04 | G94: 63.74 | H94: 75.7 | I94: 81.8 | J94: NYSE
A95: 94 | B95: Viacom | C95: VIAB | D95: 46.89 | E95: 59.02 | F95: 85.4 | G95: 64.42 | H95: 40.97 | I95: 37.48 | J95: NYSE
A96: 95 | B96: Verizon | C96: VZ | D96: 38.33 | E96: 42.54 | F96: 48.42 | G96: 47.99 | H96: 45.52 | I96: 54.64 | J96: NYSE
A97: 96 | B97: Walmart | C97: WMT | D97: 61.01 | E97: 69 | F97: 78.65 | G97: 89.35 | H97: 63.54 | I97: 69.06 | J97: NYSE
A98: 97 | B98: Watsco Inc. | C98: WSO | D98: 67.61 | E98: 76.15 | F98: 96.62 | G98: 110.74 | H98: 109.28 | I98: 147.28 | J98: NYSE
A99: 98 | B99: Exxon Mobil Corporation | C99: XOM | D99: 87.49 | E99: 91.73 | F99: 99.16 | G99: 90.89 | H99: 77.47 | I99: 85.6 | J99: NYSE
A100: 99 | B100: Qualcomm, Inc | C100: QCOM | D100: 61.06 | E100: 64.9 | F100: 74.08 | G100: 72.18 | H100: 45.88 | I100: 54.05
A101: 100 | B101: YUM! Brands | C101: YUM | D101: 61.23 | E101: 65.15 | F101: 72.1 | G101: 72.43 | H101: 68.02 | I101: 64.49 | J101: NYSE
